Cogmind - Beta 10.2 @@@ ROGUE MODE // 2021.07.03 @ 17:29:52 Player: Beelzebelt Result: Destroyed by G-47 Trooper with Particle Gun Performance ------------- Evolutions (3) 1500 Regions Visited (5) 1000 Robots Destroyed (14) 70 Value Destroyed (191) 191 Prototype IDs (1) 20 Alien Tech Used (0) 0 Bonus (0) 0 TOTAL SCORE: 2781 Bonus ------- None Cogmind --------- Core Integrity 0/700 Matter 233/300 Energy 100/100 System Corruption 5% Temperature Cool (9) Movement Core (50) Location -7/Factory Parts ------- > --- POWER (2) -------- (None) > --- PROPULSION (4) --- (None) > --- UTILITY (5) ------ Advanced Terrain Scan Processor Improved Utility Shielding > --- WEAPON (2) ------- (None) > --- INVENTORY (4) ---- Advanced Signal Interpreter Improved Utility Shielding Improved Utility Shielding Hardlight Generator Peak State ------------ > --- POWER ------------ (None) > --- PROPULSION ------- Armored Huge Wheel > --- UTILITY ---------- Structural Scanner Advanced Terrain Scanner Advanced Terrain Scan Processor Improved Propulsion Shielding Medium Reactive Plating > --- WEAPON ----------- Plasma Cutter Plasma Cutter > --- INVENTORY -------- Advanced Signal Interpreter Weapon Cycler Hacking Suite [Rating: 28] Favorites ----------- Power Light Ion Engine Engine Light Ion Engine Propulsion Wheel Treads Advanced Treads Wheel Wheel Flight Unit Flight Unit Utility Visual Processing Unit Device Advanced Terrain Scanner Storage Medium Storage Unit Processor Visual Processing Unit Protection Improved Utility Shielding Weapon Plasma Cutter Energy Gun Spread Laser Ballistic Gun Light Assault Rifle Special Weapon Plasma Cutter Impact Weapon Hammer Build | -11 -10 -9 -9 -8 -7 ------- Run | Scr Mat Mat Min Mat Fac Slots Evolved 6 | . . 2 . 2 2 Power 1 | . . . . 1 . Propulsion 2 | . . 1 . 1 . Utility 3 | . . 1 . . 2 Weapon . | . . . . . . Parts Attached 56 | 7 10 4 9 7 19 Power 7 | 2 1 . 2 1 1 Engine 7 | 2 1 . 2 1 1 Core . | . . . . . . Reactor . | . . . . . . Propulsion 19 | 2 1 2 3 4 7 Treads 1 | . . . . . 1 Leg . | . . . . . . Wheel 9 | 2 1 2 . 1 3 Hover . | . . . . . . Flight 9 | . . . 3 3 3 Utility 15 | . 5 1 1 . 8 Device 6 | . 1 1 . . 4 Storage 4 | . 3 . 1 . . Processor 2 | . 1 . . . 1 Hackware . | . . . . . . Protection 3 | . . . . . 3 Artifact . | . . . . . . Weapon 15 | 3 3 1 3 2 3 Energy Gun 6 | 1 2 1 2 . . Energy Cannon . | . . . . . . Ballistic Gun 3 | 2 . . 1 . . Ballistic Cannon . | . . . . . . Launcher . | . . . . . . Special Weapon 5 | . 1 . . 2 2 Impact Weapon 1 | . . . . . 1 Slashing Weapon . | . . . . . . Piercing Weapon . | . . . . . . Special Melee Weapon . | . . . . . . Unidentified Prototypes 1 | . . . . 1 . Parts Lost 33 | . . 8 . 13 12 Power 4 | . . 1 . 2 1 Propulsion 15 | . . 3 . 7 5 Utility 7 | . . 1 . 2 4 Weapon 7 | . . 3 . 2 2 Highest Loss Streak 8 | . . 8 . 5 6 Average Slot Usage (%) 61 | . 100 92 74 51 43 Engine 6 | . 14 10 10 9 2 Wheel 9 | . 28 29 1 . 4 Flight 9 | . . . 27 16 7 Device 5 | . . 10 . . 9 Storage 5 | . 15 11 8 4 . Processor 8 | . 12 11 11 7 6 Protection 2 | . . . . . 5 Energy Gun 5 | . 20 10 9 . . Ballistic Gun 1 | . . . 6 4 . Special Weapon 6 | . 7 8 . 7 6 Naked Turns 9 | . . . . 4 5 Heaviest Build 26 | 7 23 22 21 12 26 Greatest Support 30 | 20 26 30 12 16 28 Greatest Overweight (x) 2 | . 1 1 2 2 1 Average Overweight (x) . | . . . . . . Largest Inventory Capacity 14 | 4 14 8 8 6 4 Average Capacity 5 | 4 8 8 5 5 4 Most Carried 8 | 4 8 6 6 5 4 Average Carried 4 | 2 7 5 4 3 3 Final Capacity 8 | 4 8 8 6 4 4 Final Carried 7 | 4 7 4 6 4 4 Class Distribution -------------------- 62% | Mutant 19% | Skirmisher 10% | Scavenger-Mutant 7% | Scavenger-Sprinter Dominant Class ---------------- Mutant | -10/Materials Mutant | -9/Materials Scavenger-Mutant | -9/Mines Mutant | -8/Materials Mutant | -7/Factory Resources | -11 -10 -9 -9 -8 -7 ----------- Run | Scr Mat Mat Min Mat Fac Matter Collected 619 | 273 73 . 139 25 109 Remotely . | . . . . . . Salvage Created 367 | 56 73 18 220 . . Parts 30 | 6 2 2 20 . . Haulers Intercepted . | . . . . . . Recyclers Shooed 1 | . . . 1 . . Parts Field Recycled . | . . . . . . Retrieved Matter . | . . . . . . Parts Self-Destructed . | . . . . . . Prevented . | . . . . . . Kills | -11 -10 -9 -9 -8 -7 ------- Run | Scr Mat Mat Min Mat Fac Combat Hostiles Destroyed 8 | 1 2 1 4 . . Guns 8 | 1 2 1 4 . . Classes Destroyed 6 | 2 . 1 3 . . Worker 2 | 1 . . 1 . . Builder 1 | . . . 1 . . Tunneler 1 | . . . 1 . . Recycler 2 | . . . 2 . . Swarmer 5 | . . 1 4 . . Grunt 3 | 1 2 . . . . Best Kill Streak 4 | 1 2 1 4 . . Combat Bots Only 4 | 1 2 1 4 . . Max Kills in Single Turn 1 | 1 1 1 1 . . Gunslinging . | . . . . . . Exploded . | . . . . . . Melee . | . . . . . . Uniques/NPCs Destroyed . | . . . . . . Combat | -11 -10 -9 -9 -8 -7 -------- Run | Scr Mat Mat Min Mat Fac Damage Taken 3286 | 12 41 591 56 1071 1515 Core 1132 | . . 164 26 241 701 Absorbed by Shields . | . . . . . . Core Remaining (%) 77 | 100 100 . 52 56 . Volleys Fired 105 | 4 12 15 24 43 7 Largest 2 | 2 2 2 2 2 2 Hottest 130 | 60 130 130 130 120 40 Shots Fired 133 | 6 17 16 36 45 13 Gun 56 | 6 10 2 36 2 . Cannon . | . . . . . . Launcher . | . . . . . . Special 77 | . 7 14 . 43 13 Kinetic 16 | 2 . . 12 2 . Thermal 117 | 4 17 16 24 43 13 Explosive . | . . . . . . Electromagnetic . | . . . . . . Robot Hit Streak 12 | 2 12 2 7 3 2 Robot Miss Streak 5 | 1 2 5 5 1 2 Penetration Max . | . . . . . . Secondary Targets 1 | . . 1 . . . Max Gunslinging Chain 1 | . . 1 . . . Shots Hit Robots 50 | 3 9 2 25 1 10 Core Hits 43 | 3 12 2 26 . . Critical Hits . | . . . . . . Critical Kills . | . . . . . . Critical Parts Destroyed . | . . . . . . Melee Attacks 9 | . . . . . 9 Impact 9 | . . . . . 9 Slashing . | . . . . . . Piercing . | . . . . . . Sneak Attacks . | . . . . . . Combat Hostiles . | . . . . . . Follow-up Attacks . | . . . . . . Damage Inflicted 624 | 30 123 8 259 34 170 Guns 430 | 30 123 8 259 10 . Cannons . | . . . . . . Explosions . | . . . . . . Melee 133 | . . . . . 133 Ramming . | . . . . . . Kinetic 88 | 8 . . 70 10 . Thermal 403 | 22 123 8 189 24 37 Explosive . | . . . . . . Electromagnetic . | . . . . . . Impact 133 | . . . . . 133 Slashing . | . . . . . . Piercing . | . . . . . . Highest Corruption 28 | . . . . 28 5 Average Corruption 9 | . . . . 19 4 Corruption Purged . | . . . . . . Effects 28 | . . . . 14 14 Message Errors 8 | . . . . 3 5 Matter Fused 5 | . . . . 3 2 Heat Flow Errors 2 | . . . . . 2 Energy Discharges 2 | . . . . 2 . Data Loss (minor) 5 | . . . . 1 4 Data Loss (major) 1 | . . . . . 1 Misfires 1 | . . . . 1 . Targeting Errors 4 | . . . . 4 . Overload Shots . | . . . . . . Overflow Damage 2 | . . . . . 2 Projectiles . | . . . . . . Explosions . | . . . . . . Melee 2 | . . . . . 2 Knockbacks . | . . . . . . Impact . | . . . . . . Kinetic . | . . . . . . Secondary . | . . . . . . Self-Inflicted Damage . | . . . . . . Shots . | . . . . . . Rammed . | . . . . . . Targets Rammed . | . . . . . . Kicked . | . . . . . . Crushed . | . . . . . . Highest Temperature 349 | 26 349 39 265 271 225 Average Temperature 117 | 16 92 19 108 140 112 Received Heat Transfer 627 | 6 24 33 . 126 438 Effects 3 | . 1 . . 2 . Shutdowns 1 | . 1 . . . . Interference 2 | . . . . 2 . Siege Activations . | . . . . . . Robots Corrupted . | . . . . . . Combat Hostiles . | . . . . . . Parts Fried . | . . . . . . Impact Corruptions 1 | . . . . . 1 Robots Melted . | . . . . . . Combat Hostiles . | . . . . . . Parts Melted 1 | . 1 . . . . Heat Transferred 611 | 50 150 10 240 50 111 Parts Sabotaged . | . . . . . . Parts Stolen . | . . . . . . Parts Stripped . | . . . . . . Power Chain Reactions . | . . . . . . Missiles Intercepted . | . . . . . . Alert | -11 -10 -9 -9 -8 -7 ------- Run | Scr Mat Mat Min Mat Fac Peak Influence 217 | 25 74 66 181 217 83 Initial 70 | . 16 31 6 70 68 Average 67 | 5 51 45 112 150 43 Maximum Alert Level 1 | . . . . 1 . Low Security (%) 96 | 100 100 100 100 77 100 Level 1 3 | . . . . 22 . Level 2 . | . . . . . . Level 3 . | . . . . . . Level 4 . | . . . . . . Level 5 . | . . . . . . High Security . | . . . . . . Max Security . | . . . . . . Squads Dispatched 10 | . . 1 . 5 4 Investigation 2 | . . . . 1 1 Extermination 1 | . . . . . 1 Reinforcement 7 | . . 1 . 4 2 Assault . | . . . . . . Garrison . | . . . . . . Intercept . | . . . . . . Construction Impeded 1 | . . . . 1 . Haulers Reinforced . | . . . . . . Stealth | -11 -10 -9 -9 -8 -7 --------- Run | Scr Mat Mat Min Mat Fac Distress Signals 3 | . . 2 . 1 . Communications Jammed . | . . . . . . Distress Signals . | . . . . . . Times Spotted 62 | 1 3 16 10 16 16 Peak Tracking Total 13 | 1 2 13 4 8 8 Tactical Retreats 4 | . . . 1 1 2 Traps | -11 -10 -9 -9 -8 -7 ------- Run | Scr Mat Mat Min Mat Fac Traps Triggered 1 | . . . . . 1 Indirectly . | . . . . . . Trap Hack Attempts . | . . . . . . Triggered . | . . . . . . Disarmed . | . . . . . . Reprogrammed . | . . . . . . Reused . | . . . . . . Traps Extracted . | . . . . . . Installed . | . . . . . . Triggered . | . . . . . . Machines | -11 -10 -9 -9 -8 -7 ---------- Run | Scr Mat Mat Min Mat Fac Machines Disabled . | . . . . . . Max in Single Turn . | . . . . . . Machines Sabotaged . | . . . . . . Garrisons Compromised . | . . . . . . Overloaded Fab Kills . | . . . . . . Fab Network Shutdowns . | . . . . . . Hacking | -11 -10 -9 -9 -8 -7 --------- Run | Scr Mat Mat Min Mat Fac Machines Accessed 10 | . 3 3 . 3 1 Terminals 9 | . 3 3 . 2 1 Fabricators . | . . . . . . Repair Stations . | . . . . . . Recycling Units . | . . . . . . Scanalyzers 1 | . . . . 1 . Garrison Access . | . . . . . . Total Hacks 31 | . 9 12 . 8 2 Successful 11 | . 2 7 . 2 . Failed 20 | . 7 5 . 6 2 Catastrophic 6 | . 2 1 . 2 1 Database Lockouts . | . . . . . . Manual 25 | . 9 8 . 6 2 Terminals 29 | . 9 12 . 6 2 Fabricators . | . . . . . . Repair Stations . | . . . . . . Recycling Units . | . . . . . . Scanalyzers 2 | . . . . 2 . Garrison Access . | . . . . . . Terminal Hacks 9 | . 2 7 . . . Part Schematic 1 | . 1 . . . . Terminal Index 1 | . . 1 . . . Fabricator Index 2 | . 1 1 . . . Dispatch Records 1 | . . 1 . . . Patrol Status 1 | . . 1 . . . Transport Status 2 | . . 2 . . . Hauler Manifests 1 | . . 1 . . . Fabricator Hacks . | . . . . . . Repair Station Hacks . | . . . . . . Recycling Unit Hacks . | . . . . . . Scanalyzer 2 | . . . . 2 . Insert Component 1 | . . . . 1 . Analyze 1 | . . . . 1 . Garrison Access Hacks . | . . . . . . Unauthorized Hacks . | . . . . . . Terminals . | . . . . . . Fabricators . | . . . . . . Repair Stations . | . . . . . . Recycling Units . | . . . . . . Scanalyzers . | . . . . . . Garrison Access . | . . . . . . Data Cores Recovered . | . . . . . . Used . | . . . . . . Hacking Detections 10 | . 3 3 . 3 1 Full Trace Events 3 | . . . . 2 1 Feedback Events . | . . . . . . Feedback Blocked . | . . . . . . Robot Schematics Acquired . | . . . . . . Robots Built . | . . . . . . Matter . | . . . . . . Time . | . . . . . . Total Robot Build Rating . | . . . . . . Part Schematics Acquired 2 | . 1 . . 1 . Parts Built . | . . . . . . Matter . | . . . . . . Time . | . . . . . . Total Part Build Rating . | . . . . . . Parts Repaired . | . . . . . . Time . | . . . . . . Parts Recycled . | . . . . . . Recycled Matter . | . . . . . . Retrieved Matter . | . . . . . . Retrieved Components . | . . . . . . Parts Scanalyzed 1 | . . . . 1 . Part Schematics Acquired 1 | . . . . 1 . Parts Damaged . | . . . . . . Bothacking | -11 -10 -9 -9 -8 -7 ------------ Run | Scr Mat Mat Min Mat Fac Used RIF Installer . | . . . . . . Robots Hacked . | . . . . . . Non-combat . | . . . . . . Combat . | . . . . . . Robot Hacks Applied . | . . . . . . Relay Couplers Released . | . . . . . . Robots Rewired . | . . . . . . Allies Hacked . | . . . . . . Hacks Repelled . | . . . . . . Allies | -11 -10 -9 -9 -8 -7 -------- Run | Scr Mat Mat Min Mat Fac Total Allies . | . . . . . . Largest Group . | . . . . . . Highest-Rated Group . | . . . . . . Highest-Rated Ally . | . . . . . . Total Orders . | . . . . . . Ally Attacks . | . . . . . . Total Damage . | . . . . . . Kills . | . . . . . . Allies Corrupted . | . . . . . . Allies Melted . | . . . . . . Intel | -11 -10 -9 -9 -8 -7 ------- Run | Scr Mat Mat Min Mat Fac Robot Analysis Total . | . . . . . . Derelict Logs Recovered 1 | . . . 1 . . Drone Launches . | . . . . . . Drone Recoveries . | . . . . . . Exploration | -11 -10 -9 -9 -8 -7 ------------- Run | Scr Mat Mat Min Mat Fac Turns Passed 2097 | 101 303 175 245 318 955 Spaces Moved 1427 | 91 256 139 263 159 519 Core 96 | 15 . . . 16 65 Treads 16 | . . . . . 16 Legs . | . . . . . . Wheels 706 | 76 256 139 18 39 178 Hover . | . . . . . . Flight 609 | . . . 245 104 260 Fastest Speed 30 | 50 80 80 34 30 34 Average Speed 62 | 75 80 80 38 48 63 Slowest Speed 200 | 80 90 90 114 200 145 Overloaded Moves . | . . . . . . Propulsion Burnouts . | . . . . . . Robots Hopped 6 | . . . . . 6 Cave-ins Triggered 5 | . . . . 5 . Exploration Rate (%) 26 | 9 38 23 54 21 14 Regions Visited 5 Branch Regions 1 Pre-discovered Areas . | . . . . . . Known Exits Taken . | . . . . . . Unknown Exits Taken 5 | 1 1 1 1 1 . Scrap Searched . | . . . . . . Spaces Dug 62 | . 6 14 . 42 . Terrain Destroyed 63 | . 7 14 . 42 . Melee . | . . . . . . Projectile 63 | . 7 14 . 42 . AOE . | . . . . . . Terrain Rammed . | . . . . . . Walls Destroyed . | . . . . . . Machines Disabled . | . . . . . . Actions | -11 -10 -9 -9 -8 -7 --------- Run | Scr Mat Mat Min Mat Fac Total 2347 | 117 328 158 376 270 1098 Wait 669 | 2 16 . 62 56 533 Move 1410 | 90 255 138 262 157 508 Hop 5 | . . . . . 5 Pick Up 45 | 9 14 1 10 4 7 Fast Attach 28 | 4 7 . 2 1 14 Attach 24 | 1 1 4 7 6 5 Detach 12 | . 5 . 3 1 3 Swap 4 | 2 2 . . . . Drop 35 | 5 16 . 6 1 7 Fire 105 | 4 12 15 24 43 7 Melee 9 | . . . . . 9 Ram . | . . . . . . Kick . | . . . . . . Crush . | . . . . . . Escape Stasis 1 | . . . . 1 . Rewire . | . . . . . . Trap . | . . . . . . Miscellaneous . | . . . . . . Route ------- -11/Scrapyard -10/Materials (discovered 2 exits: *Mat / [*Min]) -9/Materials -9/Mines -8/Materials -7/Factory (discovered 1 exit: Low) History --------- Turn | Location | Event 2 | -11/Scrapyard | Met Revision 17 80 | -11/Scrapyard | Discovered new exit (range 8) 102 | -11/Scrapyard | Entered Materials 217 | -10/Materials | Discovered new exit (range 8) 317 | -10/Materials | Build established: Mutant 327 | -10/Materials | Discovered new exit (range 16) 405 | -10/Materials | Entered another Materials area 405 | -9/Materials | Evolved 2 slots: Propulsion x1, Utility x1 576 | -9/Materials | Discovered new exit (range 6) 580 | -9/Materials | Entered Mines 609 | -9/Mines | Lost 8 parts (1p3n1u3w) 766 | -9/Mines | Received a Rocket Launcher from a helpful Derelict 805 | -9/Mines | Discovered new exit (range 17) 825 | -9/Mines | Entered Materials 825 | -8/Materials | Evolved 2 slots: Power x1, Propulsion x1 929 | -8/Materials | Crushed by falling debris 929 | -8/Materials | System corruption reached 10% 960 | -8/Materials | Lost 4 parts (1p3n) 996 | -8/Materials | Crushed by falling debris 997 | -8/Materials | Crushed by falling debris 1028 | -8/Materials | Lost 5 parts (3n1u1w) 1070 | -8/Materials | Crushed by falling debris 1098 | -8/Materials | Crushed by falling debris 1133 | -8/Materials | Discovered new exit (range 15) 1143 | -8/Materials | Entered Factory 1143 | -7/Factory | Evolved 2 slots: Utility x2 1144 | -7/Factory | Identified exit to Lower Caves 1170 | -7/Factory | Lost 4 parts (1p1n1u1w) 1547 | -7/Factory | Build established: Skirmisher 1740 | -7/Factory | Lost 6 parts (1n3u2w) 1960 | -7/Factory | Build established: Mutant 2011 | -7/Factory | Core integrity fell below 50% 2047 | -7/Factory | Lost 3 parts (1p2n) 2076 | -7/Factory | Core integrity fell below 20% 2098 | -7/Factory | Destroyed by G-47 Trooper with Particle Gun Last Messages --------------- 01994_ K-01 Serf collects debris. 01994_ Lgt. Ion Engine destroyed. 01996_ K-01 Serf collects debris. 01997_ K-01 Serf cleans the Manufacturing Mainframe. 02009_ System corrupted: Substantial component data lost. 02010_ K-01 Serf cleans the Manufacturing Mainframe. 02016_ Xenon Bombardment Thruster destroyed. 02029_ BMMDW1M06RQ:4XTYUHCD6|VVX F5IN BSH 02049_ H0ZXZ V<9L|XCC0KL0#K 02050_ Acquired Hardlight Generator. 02065_ Xenon Bombardment Thruster destroyed. 02069_ Adv. Terrain Scanner destroyed. 02070_ U-05 Engineer destroyed. 02070_ K-01 Serf collects debris. 02073_ Acquired Com. Wheel. 02077_ K-01 Serf collects debris. 02079_ Assembly Bed disabled. 02080_ KVHJPLFIDIOTG 3:L TIXVCSIQ 02095_ System corrupted: Matter fused (-8). 02096_ Com. Wheel destroyed. Map ----- +----------------------------------------------------+ | ?????????????????????????????????????????????????? | | ???????????????????????????#?????????????????????? | | ??????????????????????????????#??##??????????????? | | ???????????????????????????#?#######?##????????### | | ?????????????????????????#####?####????###?????# | | ???????????????????????#####?###############???# | | ????????????????????##?#???####?##?#?######?##?# | | ????????????????????###?#?########?#######?##### | | ??????????????????##?#####?######?########### ## | | ??????????????????###??#?#####?#?## # ! | | ????? ????????#########?#?###### "" [[! ! ### | | ???# ^ ????????####?#####?####### """ [[ ### | | ???+ #??????###############?### "R [! + | | ???# #??????#######?########### """ ### | | ???# #???? ?? ####### # """ ##? | | ???# #??? ? #####?# # #?# | | ???# #???? ####### """" # """ """" ### | | ???# #? ?? ####### """" # """ """" ### | | ???# #??? ####### """" # """ """" / | | ???# +? ? ###?### """" # """" ### | | ???# # ####?## """" # #?# | | ???# # ? ####### """" #######+######## | | #### ################# = #### ##### | | #######+####### ####? | | % p #?### | | @ g ##### | | u m o gY ##### | | ###+########### ## | | ###+############ #= T #?#?# ^ ## ## | | ??# """" ##?### # ########/##### ## | | ??# ! ""S"" ###### # """ """ # # ## | | ??# "" "" ###### + """ """ # "" # ## | | ??# + # """ """ # """# ## | | ??# """ """ # # # """" ! S"# | | ??# """ """ + ########### """ # | | ??# """ """ ########+############# """" / | | ? # ## ######## """" # = | | ??############ """ ######## """" +!% | | ??##?#?###??## """"" + # """" #### | | ??############ """"" ###### # # | | ??####?####### #?#### # # | | ??##?##?###### """ #####? # ! # | | ??###?###?#### """"" #####? ############## | | ???###?####### """"" ###?## #######??????# | | ???? ? ?#### ###### ####??#??????# | | ????? #### #??### ####?#???????# | | ????""" #### ####?#??#####???????# | | ????? ?##?# #####? ? ????????# | | ?????"? ? #######+#########????# ????????#### | | ?????? ?###?### ############## ????????????? | +----------------------------------------------------+ Best States ------------- Heat Dissipation 38 Energy Generation 15 Energy Capacity 265 Matter Stores 300 Matter Capacity 300 Sight Range 18 Terrain Scan Range 20 Terrain Scan Density 210 Additional Mass Support 6 Armor Coverage 225 Resistance: KI 30 Propulsion Shielding 66 Utility Shielding 66 Evasion (%) 63 Recoil Reduction 1 Item Schematics ----------------- Datajack | -10/Materials | Hacked Mining Laser | -8/Materials | Scanalyzed Robot Schematics ------------------ None Fabricated ------------ Nothing Alien Tech Used ----------------- None Achievements -------------- Made in Tau Ceti IV Omniscient Cartographer Risk Taker Shopping List Storm Trooper System Compromised Unlikely Earthworm Challenges ------------ None Game ------ Seed ImprovedRegenerativeTendrils Manual? 0 Play Time 01:00:46 Cumulative 4.6 hours Start 2021.07.03 @ 16:01:44 End 2021.07.03 @ 17:29:52 Sessions 1 Manual Loads 0 Difficulty Rogue Special Mode None Game No. 2 Rogue 2 Adventurer 0 Explorer 0 Win Type - Total 0 Types 0/0/0/0/0/0/0/0/0 Lore% 2 Gallery% 5 Achievement% 7 Wizard Run 0 Options --------- ASCII 0 Keyboard 1 Movement Numpad Keybinds 0 Fullscreen 2 Font 16/Terminus Map View 76x50 Tactical HUD 1 Map Filters NONE Filters NONE Steam 0 RUN: 49448057-f3c5-47f5-80b0-c2a5ee7d6d4a